Cogmind - Beta 10.2 @@@ ROGUE MODE // 2021.06.29 @ 13:40:11 Player: Mares Result: Destroyed by Y-72 Warden with Railgun Performance ------------- Evolutions (6) 3000 Regions Visited (25) 5000 Robots Destroyed (362) 1810 Value Destroyed (13339) 13339 Prototype IDs (53) 1060 Alien Tech Used (0) 0 Bonus (255) 255 TOTAL SCORE: 24464 Bonus ------- High Alert Combat Kills 1350 Follower Combat Kills 2396 Network Hubs Disabled 400 Met Data Miner 300 Destroyed Z-Imprinter 1000 Met Zhirov 300 Built Enhanced Grunts 300 A7 Reached Mainframe 300 Met R17 at Cetus 500 Read Decrypted Archives 300 Friendly Fire -6891 Cogmind --------- Core Integrity 0/1150 Matter 131/300 Energy 298/900 System Corruption 23% Temperature Cool (9) Movement Hovering (72) Location -4/Armory Parts ------- > --- POWER (1) -------- (None) > --- PROPULSION (4) --- Combat Antigrav System Combat Antigrav System Combat Antigrav System > --- UTILITY (12) ----- Improved Coolant Injector Large Storage Unit Large Storage Unit High-capacity Storage Unit Advanced Energy Well Quantum Capacitor Experimental Propulsion Shielding Point Defense Array Advanced System Shield > --- WEAPON (2) ------- (None) > --- INVENTORY (24) --- Light Quantum Reactor Combat Antigrav System Combat Antigrav System High-capacity Storage Unit Matter Compressor (250) Inertial Stasis Machine Long-range Sensor Array Experimental Armor Integrity Analyzer Improved Weapon Cycler Advanced Transmission Jammer Advanced Cloaking Device Zionite Weapon Casing Advanced Force Field Enhanced Nova Cannon Enhanced Nova Cannon Enhanced Nova Cannon Linear Accelerator Linear Accelerator Great Axe CR-A16's Pointy Stick Peak State ------------ > --- POWER ------------ Antimatter Reactor > --- PROPULSION ------- Advanced Heavy Siege Treads Gravmag Array > --- UTILITY ---------- Improved Coolant Injector Large Storage Unit Large Storage Unit High-capacity Storage Unit High-capacity Storage Unit Advanced Energy Well Centrium Medium Armor Plating Medium Regenerative Plating Improved Hacking Suite Improved System Shield Advanced System Shield Advanced System Shield > --- WEAPON ----------- HERF Cannon Enhanced Nova Cannon > --- INVENTORY -------- Quantum Reactor Light Quantum Reactor Combat Antigrav System Combat Antigrav System Combat Antigrav System Combat Antigrav System Combat Antigrav System Matter Compressor Inertial Stasis Machine Long-range Sensor Array Experimental Armor Integrity Analyzer Kinecellerator Quantum Capacitor Improved Weapon Cycler Advanced Transmission Jammer Advanced Cloaking Device Zionite Weapon Casing Improved Medium Armor Plating Advanced Force Field Point Defense Array Matter Neutralizer Enhanced Nova Cannon Enhanced Nova Cannon Enhanced Nova Cannon KE Penetrator Mass Driver Linear Accelerator Linear Accelerator Mini Smartbomb Launcher Great Axe CR-A16's Pointy Stick [Rating: 129] Favorites ----------- Power Light Angular Momentum Engine Engine Light Angular Momentum Engine Power Core Light Nuclear Core Reactor Antimatter Reactor Propulsion Light Treads Treads Light Treads Leg Aluminum Leg Wheel Armored Huge Wheel Hover Unit Cooled Aerolev Unit Flight Unit Improved Flight Unit Utility Large Storage Unit Device Experimental Sensor Array Storage Large Storage Unit Processor Advanced Signal Interpreter Hackware Improved Hacking Suite Protection Medium Regenerative Plating Weapon CR-A16's Pointy Stick Energy Gun Zionite Phaser-S Energy Cannon Heavy Phase Cannon Ballistic Gun Improved Assault Rifle Ballistic Cannon Light Antimatter Cannon Launcher Proton Missile Launcher Special Weapon Plasma Cutter Slashing Weapon Great Axe Piercing Weapon CR-A16's Pointy Stick Build | -11 -10 -10 -9 -9 -8 -7 -7 -7 -7 -7 -6 -6 -6 -6 -6 -5 -5 -5 -5 -5 -5 -4 -4 -4 -4 ------- Run | Scr Mat Min Mat Sto Mat Fac Low Low Zio Dee Pro Fac Low Low Dat Pro Fac Ext Cet Arc Hub Fac Was Fac Arm Slots Evolved 12 | . . . 2 . 2 2 . . . . . 2 . . . . 2 . . . . 2 . . . Power . | . . . . . . . . . . . . . . . . . . . . . . . . . . Propulsion 2 | . . . 1 . 1 . . . . . . . . . . . . . . . . . . . . Utility 10 | . . . 1 . 1 2 . . . . . 2 . . . . 2 . . . . 2 . . . Weapon . | . . . . . . . . . . . . . . . . . . . . . . . . . . Parts Attached 484 | 7 10 3 37 27 9 44 9 8 15 35 14 15 2 6 8 8 28 15 16 1 32 41 7 24 63 Power 29 | 1 2 . 1 3 2 3 . . 1 2 2 . . . . . 5 2 1 1 . 2 . . 1 Engine 13 | 1 2 . 1 3 1 1 . . 1 . 1 . . . . . . 2 . . . . . . . Core 9 | . . . . . 1 2 . . . 1 . . . . . . 5 . . . . . . . . Reactor 7 | . . . . . . . . . . 1 1 . . . . . . . 1 1 . 2 . . 1 Propulsion 110 | 2 1 2 14 9 3 8 . 3 5 12 3 2 . . . 5 5 2 2 . 3 5 5 3 16 Treads 43 | 2 . . 11 6 2 4 . . 1 2 . . . . . . 2 2 2 . 3 1 3 1 1 Leg 15 | . . 2 1 . . 1 . 3 . . . . . . . . . . . . . . . 2 6 Wheel 11 | . 1 . 2 . . 3 . . . 1 . . . . . 1 3 . . . . . . . . Hover 40 | . . . . 2 1 . . . 4 9 3 2 . . . 4 . . . . . 4 2 . 9 Flight 1 | . . . . 1 . . . . . . . . . . . . . . . . . . . . . Utility 210 | 2 3 . 8 4 2 18 7 5 8 13 4 12 2 1 7 2 16 11 8 . 17 21 1 14 24 Device 77 | . . . 1 . . 6 4 2 2 3 2 4 2 . 2 1 9 7 2 . 6 3 . 7 14 Storage 26 | 2 3 . . . . . 2 . 2 2 2 . . 1 3 . 1 . 1 . . 4 1 . 2 Processor 8 | . . . . . 1 . . . 4 . . . . . 1 . . 1 . . . 1 . . . Hackware 10 | . . . . . . 2 . . . 1 . 2 . . . . 1 . 1 . 1 2 . . . Protection 89 | . . . 7 4 1 10 1 3 . 7 . 6 . . 1 1 5 3 4 . 10 11 . 7 8 Artifact . | . . . . . . . . . . . . . . . . . . . . . . . . . . Weapon 135 | 2 4 1 14 11 2 15 2 . 1 8 5 1 . 5 1 1 2 . 5 . 12 13 1 7 22 Energy Gun 18 | 2 2 . 3 . . 1 . . . 5 2 . . . . . . . 1 . . 2 . . . Energy Cannon 20 | . . . 1 1 . 2 . . . . 1 . . 1 . 1 1 . . . . . 1 2 9 Ballistic Gun 44 | . 2 . 8 6 1 7 . . 1 . . . . . . . . . 1 . 9 4 . 2 3 Ballistic Cannon 5 | . . . . 1 . . . . . . . . . . . . . . . . . . . 1 3 Launcher 27 | . . 1 2 2 1 . 1 . . 2 1 1 . 2 . . . . 2 . 1 3 . 2 6 Special Weapon 1 | . . . . . . . . . . . . . . . . . . . 1 . . . . . . Impact Weapon . | . . . . . . . . . . . . . . . . . . . . . . . . . . Slashing Weapon 11 | . . . . 1 . 5 1 . . . . . . 2 1 . . . . . . . . . 1 Piercing Weapon 9 | . . . . . . . . . . 1 1 . . . . . 1 . . . 2 4 . . . Special Melee Weapon . | . . . . . . . . . . . . . . . . . . . . . . . . . . Unidentified Prototypes 33 | . . . 2 4 . 1 . . 3 10 . 2 . . . . 1 1 7 . . . . 2 . Parts Lost 81 | . 6 1 3 3 1 7 . 2 . 8 8 2 . . . 2 2 . 1 . 2 13 . 4 16 Power 10 | . 2 . . 1 . . . . . 1 1 . . . . 1 . . . . . 2 . . 2 Propulsion 23 | . 1 1 2 . 1 3 . 1 . 2 3 1 . . . 1 . . . . . 3 . 1 3 Utility 27 | . . . . 1 . 2 . 1 . 2 1 1 . . . . 2 . 1 . 1 6 . 2 7 Weapon 21 | . 3 . 1 1 . 2 . . . 3 3 . . . . . . . . . 1 2 . 1 4 Highest Loss Streak 13 | . 3 1 3 1 1 4 . 2 . 4 5 1 . . . 2 1 . 1 . 1 9 . 2 13 Average Slot Usage (%) 90 | . 98 100 98 98 98 94 80 81 77 81 82 91 93 98 96 93 85 92 88 88 88 88 83 89 93 Engine 4 | . 13 14 10 10 7 4 7 7 6 1 1 6 6 6 6 1 . 4 . . . . . . . Reactor 1 | . . . . . . . . . . . 4 . . . . . . . 4 5 5 4 5 5 4 Treads 12 | . 22 7 27 32 35 18 . . 3 2 . . . . . . 10 15 11 11 12 8 5 9 1 Leg 1 | . . 12 3 . . 3 . 10 5 . . . . . . . . . . . . . . . 5 Wheel 1 | . 5 7 . . . 3 15 8 4 . . . . . . 2 . . . . . . . . . Hover 5 | . . . . . . . . . 9 16 20 25 26 26 26 23 . . . . . 6 3 . 8 Device 3 | . . . 1 . . 4 5 6 3 1 1 5 6 6 3 5 4 3 . 5 3 4 . 4 6 Storage 15 | . 28 28 22 22 18 15 11 7 5 10 14 13 13 15 14 13 14 17 17 17 17 13 14 15 19 Processor 6 | . . . . . 7 7 7 7 6 7 7 6 6 6 9 13 11 11 11 11 11 7 5 5 2 Hackware 13 | . . . . . . 13 15 15 15 15 15 19 20 20 20 20 21 23 19 17 16 20 21 21 20 Protection 5 | . . . 9 10 10 3 . . . 1 . 2 6 3 1 . 2 . 8 5 7 11 21 16 11 Energy Gun 2 | . 12 14 3 . . . . . . 10 7 2 . . . . . . 1 . . 1 . . . Energy Cannon 1 | . . . 3 4 . . . . . . . . . 2 . 5 3 . . . . . . 4 4 Ballistic Gun 5 | . 14 . 10 14 17 8 1 . 1 1 . . . . . . . . . 5 9 4 . 1 1 Launcher 1 | . . 13 4 . . . 6 7 4 . 4 . . . 3 . . . 3 5 . . . . 2 Slashing Weapon 1 | . . . . . . 4 5 7 7 . . . . 1 2 . . . . . . . . . . Piercing Weapon 2 | . . . . . . . . . . 2 1 6 6 6 6 6 6 11 2 . . 2 5 2 . Naked Turns . | . . . . . . . . . . . . . . . . . . . . . . . . . . Heaviest Build 155 | 14 39 42 49 53 55 64 117 106 107 110 135 74 62 85 85 55 69 76 97 91 98 115 119 119 155 Greatest Support 160 | 40 40 20 69 63 80 82 56 56 60 94 87 67 60 60 60 60 140 140 160 160 160 126 140 140 122 Greatest Overweight (x) 35 | 1 3 4 4 1 1 1 2 10 35 32 8 1 1 1 1 3 15 . 1 . 1 1 7 5 5 Average Overweight (x) . | . 1 3 . . . . . 2 1 1 1 . 1 1 . 1 . . . . . . 1 . . Largest Inventory Capacity 32 | 8 16 16 16 16 16 16 30 24 30 30 32 18 18 24 24 16 22 22 22 22 22 30 24 24 32 Average Capacity 19 | 6 10 16 16 16 16 16 19 24 18 25 28 18 18 20 18 16 19 22 22 22 22 21 23 24 26 Most Carried 32 | 8 16 16 16 16 16 16 28 24 24 30 32 18 17 24 24 16 22 22 22 22 22 24 24 24 32 Average Carried 18 | 4 9 15 15 15 15 15 18 23 17 24 26 17 17 20 17 15 18 21 21 21 21 19 20 22 25 Final Capacity 30 | 8 16 16 16 16 16 16 24 24 24 30 18 18 18 24 16 16 22 22 22 22 22 16 24 24 24 Final Carried 30 | 8 16 16 16 16 16 15 24 24 24 30 18 17 17 24 16 16 22 22 22 21 22 16 24 21 20 Class Distribution -------------------- 47% | Hacker-Mutant 27% | Scavenger-Mutant 13% | Hauler-Mutant 11% | Mutant Dominant Class ---------------- Scavenger-Mutant | -10/Materials Mutant | -10/Mines Mutant | -9/Materials Scavenger-Mutant | -9/Storage Scavenger-Mutant | -8/Materials Scavenger-Mutant | -7/Factory Hacker-Mutant | -7/Lower Caves Hauler-Mutant | -7/Lower Caves Hauler-Mutant | -7/Zion Hauler-Mutant | -7/Deep Caves Hauler-Mutant | -6/Proximity Caves Hacker-Mutant | -6/Factory Hacker-Mutant | -6/Lower Caves Hacker-Mutant | -6/Lower Caves Hacker-Mutant | -6/Data Miner Hacker-Mutant | -5/Proximity Caves Hacker-Mutant | -5/Factory Hacker-Mutant | -5/Extension Hacker-Mutant | -5/Cetus Hacker-Mutant | -5/Archives Scavenger-Mutant | -5/Hub_04(d) Hacker-Mutant | -4/Factory Hacker-Mutant | -4/Waste Hacker-Mutant | -4/Factory Hacker-Mutant | -4/Armory Resources | -11 -10 -10 -9 -9 -8 -7 -7 -7 -7 -7 -6 -6 -6 -6 -6 -5 -5 -5 -5 -5 -5 -4 -4 -4 -4 ----------- Run | Scr Mat Min Mat Sto Mat Fac Low Low Zio Dee Pro Fac Low Low Dat Pro Fac Ext Cet Arc Hub Fac Was Fac Arm Matter Collected 9665 | 266 149 116 725 689 381 774 283 186 170 389 168 205 23 190 117 110 265 279 304 . 804 887 254 425 1506 Remotely . | . . . . . . . . . . . . . . . . . . . . . . . . . . Salvage Created 18145 | 93 1018 501 1902 1203 862 1055 541 505 . 244 210 804 176 339 . 255 573 392 1106 . 1724 1161 204 1398 1879 Parts 909 | 3 71 34 130 73 43 52 14 10 . 11 12 32 6 6 . 5 34 16 54 . 76 55 12 77 83 Haulers Intercepted 16 | . 1 . 5 4 1 2 . . . . . 1 . . . . 1 . . . 1 . . . . Recyclers Shooed 9 | . 2 . 2 . 2 1 . . . . . . . . . . . 2 . . . . . . . Parts Field Recycled . | . . . . . . . . . . . . . . . . . . . . . . . . . . Retrieved Matter . | . . . . . . . . . . . . . . . . . . . . . . . . . . Parts Self-Destructed 32 | . . . . . . . 6 2 3 . 12 . . 5 . 4 . . . . . . . . . Prevented 12 | . . . . . . . 1 9 . . . . . 2 . . . . . . . . . . . Kills | -11 -10 -10 -9 -9 -8 -7 -7 -7 -7 -7 -6 -6 -6 -6 -6 -5 -5 -5 -5 -5 -5 -4 -4 -4 -4 ------- Run | Scr Mat Min Mat Sto Mat Fac Low Low Zio Dee Pro Fac Low Low Dat Pro Fac Ext Cet Arc Hub Fac Was Fac Arm Combat Hostiles Destroyed 246 | . 18 8 32 25 11 17 3 4 . 5 4 6 . 9 . 1 7 4 15 . 20 12 . 13 32 Melee 23 | . . . . . . 4 . . . 1 . 2 . 1 . 1 7 4 . . 1 2 . . . Guns 93 | . 18 1 16 11 9 11 . . . 2 1 . . . . . . . . . 18 3 . 2 1 Cannons 37 | . . . 4 12 . 1 . . . . 2 . . . . . . . . . . . . 6 12 AOE 76 | . . 7 12 2 2 . 3 3 . 2 1 4 . 7 . . . . 11 . 1 7 . 2 12 Classes Destroyed 21 | 1 6 1 4 . . 1 2 . . 2 . . 1 . . . 1 . . . . . 1 . 1 Worker 24 | . 1 2 3 1 1 . . . . . . 1 . . . . . . . . 8 5 . 2 . Builder 15 | . . 1 1 . 1 2 . . . . . . . . . . 2 . . . . 3 . 5 . Tunneler 3 | . . . 1 . . 1 . . . . . 1 . . . . . . . . . . . . . Hauler 16 | . 1 . 5 4 1 2 . . . . . 1 . . . . 1 . . . 1 . . . . Recycler 22 | 1 3 1 1 1 2 1 . . . . . 4 . . . . . 1 . . 2 2 . 3 . Minesweeper 2 | . . . . . . . 1 . . . . . . 1 . . . . . . . . . . . Operator 15 | . 3 . 5 1 1 1 . . . . . . . . . . 1 1 . . 2 . . . . Watcher 16 | . 3 . 4 . 2 1 . . . . . 1 . . . . . . 2 . . 2 . . 1 Swarmer 46 | . 6 . 9 7 . 2 3 . . . . 5 . 1 . . . . 4 . 4 . . 1 4 Grunt 101 | . 12 8 13 11 8 7 . 3 . . 3 . . 6 . . 1 3 4 . 6 8 . 3 5 Brawler 5 | . . . 1 . 1 . . . . . . . . 1 . . . . . . . . . . 2 Duelist 7 | . . . 1 . . 1 . 1 . . . . . . . . . . 1 . . . . . 3 Sentry 33 | . . . 8 7 2 2 . . . . . . . 1 . 1 1 . . . 4 1 . 3 3 Specialist 1 | . . . . . . . . . . . . . . . . . . . . . . . . . 1 Hunter 12 | . . . . . . . . . . . . . . . . . 1 . . . 2 . . 3 6 Programmer 30 | . . . . . . 5 . . . . 1 1 . . . . 4 . . . 4 3 . 3 9 Cetus Guard 6 | . . . . . . . . . . . . . . . . . . . 6 . . . . . . Enhanced Grunt 1 | . . . . . . . . . . . . . . . . . . . 1 . . . . . . Z-Light 3 | . . . . . . . . . . 3 . . . . . . . . . . . . . . . Decomposer 5 | . . . . . . . 3 . . . . . 2 . . . . . . . . . . . . Packrat 4 | . . . . . . . 2 . . . . . . . . 2 . . . . . . . . . Samaritan 7 | . . . . . . . 4 1 . . . . 2 . . . . . . . . . . . . Tinkerer 1 | . . . . . . . . . . . . . 1 . . . . . . . . . . . . Assembled 1 | . . . . . . . . . . 1 . . . . . . . . . . . . . . . Martyr 1 | . . . . . . . . . . . . . . . . . . . . . . . 1 . . Guerrilla 1 | . . . . . . . . . . . . . . . . . . 1 . . . . . . . Best Kill Streak 10 | 1 8 3 10 5 5 6 3 4 . 3 2 5 . 4 . 1 2 2 8 . 8 7 . 3 5 Combat Bots Only 9 | . 5 2 9 5 4 6 3 4 . 3 2 4 . 4 . 1 2 2 7 . 6 4 . 3 5 Max Kills in Single Turn 7 | 1 1 3 2 2 2 1 2 1 . 2 1 5 1 3 . 1 1 1 3 . 3 7 1 1 3 Gunslinging 1 | . . . . 1 . . . . . . . . . . . . . . . . 1 . . . . Exploded 4 | . . 2 2 2 2 . 2 1 . 2 1 4 . 3 . . . . 3 . 1 4 . 1 3 Melee 1 | . . . . . . 1 . . . 1 . 1 . 1 . 1 1 1 . . 1 1 . . . Uniques/NPCs Destroyed 2 | . . . . . . . . . . 1 . . . . . . . . 1 . . . . . . Z-Imprinter (-7/Deep Caves) A7 (-5/Cetus) Combat | -11 -10 -10 -9 -9 -8 -7 -7 -7 -7 -7 -6 -6 -6 -6 -6 -5 -5 -5 -5 -5 -5 -4 -4 -4 -4 -------- Run | Scr Mat Min Mat Sto Mat Fac Low Low Zio Dee Pro Fac Low Low Dat Pro Fac Ext Cet Arc Hub Fac Was Fac Arm Damage Taken 23934 | . 756 194 1428 1359 466 2128 52 397 12 1131 376 178 . 398 . 346 1394 463 212 . 1932 3711 . 2156 4845 Core 2784 | . 110 86 198 148 40 311 . . . 196 34 . . 130 . 44 115 93 38 . 84 291 . 136 730 Absorbed by Shields 142 | . . . . . . . . . . . . . . . . . . . 109 . . 33 . . . Reduced by Siege Mode 234 | . . . . . . . . . . . . . . . . . . . . . 106 27 . 90 11 Core Remaining (%) 56 | 100 . 21 . 13 92 . . . . . 22 . . . . 79 . . . . 67 . . . . Volleys Fired 894 | 2 91 18 117 96 44 50 3 8 5 18 9 2 . 15 . 40 3 . 65 . 65 41 . 95 107 Largest 2 | 2 2 1 2 2 2 2 1 1 1 2 2 1 . 1 . 1 1 . 2 . 2 2 . 2 2 Hottest 240 | 80 80 56 91 101 46 97 39 39 33 146 135 75 . 69 . 98 98 . 100 . 78 240 . 150 177 Shots Fired 1404 | 4 157 18 207 184 86 86 4 8 6 24 15 2 . 15 . 40 3 . 94 . 123 64 . 137 127 Gun 911 | 4 157 4 148 118 84 77 . . 5 23 12 1 . . . . . . 30 . 122 58 . 40 28 Cannon 327 | . . . 38 63 . 9 . . . . 2 . . 11 . 40 3 . . . . . . 87 74 Launcher 120 | . . 14 21 3 2 . 4 8 1 1 1 1 . 4 . . . . 18 . 1 6 . 10 25 Special 46 | . . . . . . . . . . . . . . . . . . . 46 . . . . . . Kinetic 725 | . 94 . 101 133 84 77 . . 5 3 . . . . . . . . . . 122 29 . 43 34 Thermal 474 | 2 35 4 85 48 . . . . . 16 6 1 . . . 40 3 . 76 . . 29 . 84 45 Explosive 26 | . . . . . 2 . . . . 1 1 1 . 4 . . . . . . . 3 . . 14 Electromagnetic 169 | 2 28 14 21 3 . 9 4 8 1 . 2 . . 11 . . . . 18 . 1 3 . 10 34 Phasic 10 | . . . . . . . . . . 4 6 . . . . . . . . . . . . . . Robot Hit Streak 29 | 2 19 6 13 19 16 24 1 3 . 5 7 . . 3 . . 1 . 15 . 20 12 . 29 15 Robot Miss Streak 10 | 1 4 2 5 3 1 7 9 2 . 4 10 . . 3 . . 1 . 5 . 2 6 . 2 3 Penetration Max 1 | . . . . . . 1 . . . . . . . . . . . . . . 1 . . 1 . Secondary Targets 9 | . 2 . . 1 1 2 . . . . . . . . . . . . . . 2 1 . . . Max Gunslinging Chain 1 | . 1 . . 1 1 1 . . . . . . . . . . . . . . 1 1 . . . Capacitor 2 | . . . . . . . . . . . . . . . . . . . . . . . . . 2 Shots Hit Robots 1071 | 2 104 13 134 127 69 93 20 13 . 14 10 12 7 11 1 7 30 16 74 . 95 62 4 80 73 Core Hits 678 | 2 52 17 69 50 36 41 11 8 . 16 9 17 4 33 . 4 13 10 47 . 53 63 3 42 78 Critical Hits 63 | . . . 3 7 . 4 . . . 1 . . . . . . 3 2 5 . 21 7 . 6 4 Critical Kills 22 | . . . 1 3 . 2 . . . . . . . . . . 3 . . . 9 2 . 1 1 Critical Parts Destroyed 37 | . . . 2 4 . 2 . . . 1 . . . . . . . 2 3 . 11 5 . 4 3 Melee Attacks 353 | . . . . 1 . 61 28 9 38 5 . 42 7 6 7 12 47 19 . . 13 31 4 23 . Impact . | . . . . . . . . . . . . . . . . . . . . . . . . . . Slashing 142 | . . . . 1 . 61 28 9 38 . . . . 4 1 . . . . . . . . . . Piercing 211 | . . . . . . . . . . 5 . 42 7 2 6 12 47 19 . . 13 31 4 23 . Sneak Attacks 60 | . . . . . . 6 13 2 . . . 7 5 1 1 2 5 4 . . 2 5 2 5 . Combat Hostiles . | . . . . . . . . . . . . . . . . . . . . . . . . . . Follow-up Attacks 5 | . . . . . . . . . . . . . . . . . 3 2 . . . . . . . Damage Inflicted 40455 | 36 1052 666 2821 2317 1232 2690 1932 1288 . 849 403 1197 757 1053 123 388 1425 892 3478 . 3625 3162 387 3310 5372 Guns 11903 | 36 1007 58 1380 1141 895 1016 . . . 262 274 . . . . . . . 810 . 2916 1242 . 676 190 Cannons 5212 | . . . 454 1032 . 239 . . . . 61 . . 193 . . 36 . . . . . . 1470 1727 Explosions 11864 | . 38 608 931 144 312 90 75 368 . 450 68 274 . 730 . . . . 2263 . 334 1067 . 657 3455 Melee 10951 | . . . . . . 1334 1857 920 . 137 . 923 757 130 123 388 1389 892 . . 355 852 387 507 . Ramming 120 | . 7 . 56 . 25 11 . . . . . . . . . . . . . . 20 1 . . . Kinetic 9559 | . 586 . 853 1477 895 1016 . . . 58 . . . . . . . . . . 2916 598 . 775 385 Thermal 7834 | 10 224 221 1095 768 . 90 . . . 171 142 . . . . . 36 . 2068 . 38 644 . 1434 893 Explosive 5415 | . . . . . 312 . . . . 450 68 274 . 730 . . . . . . . 956 . . 2625 Electromagnetic 6411 | 26 235 445 817 72 . 239 75 368 . . 61 . . 193 . . . . 1410 . 296 111 . 594 1469 Impact . | . . . . . . . . . . . . . . . . . . . . . . . . . . Slashing 4149 | . . . . . . 1334 1857 920 . . . . . 38 . . . . . . . . . . . Piercing 6802 | . . . . . . . . . . 137 . 923 757 92 123 388 1389 892 . . 355 852 387 507 . Phasic 165 | . . . . . . . . . . 33 132 . . . . . . . . . . . . . . Highest Corruption 23 | . . . 2 2 . 7 7 8 8 4 5 . . . . . 6 6 7 7 13 16 16 20 23 Average Corruption 9 | . . . 1 2 . 5 7 7 8 4 4 . . . . . 3 6 6 7 9 10 16 16 20 Corruption Purged . | . . . . . . . . . . . . . . . . . . . . . . . . . . Effects 596 | . . . 8 16 . 71 19 10 3 13 16 . . . . . 3 47 30 2 45 38 27 122 126 Message Errors 125 | . . . 3 3 . 18 3 6 . 6 5 . . . . . 1 9 8 . 4 3 10 20 26 Matter Fused 112 | . . . . . . 14 6 . . 2 4 . . . . . 1 16 4 . 10 10 4 25 16 Heat Flow Errors 52 | . . . 1 3 . 7 2 2 . 3 4 . . . . . 1 5 2 . 3 2 4 5 8 Energy Discharges 61 | . . . 2 3 . 12 2 . 1 1 1 . . . . . . 8 3 . 2 3 4 11 8 Parts Rejected 7 | . . . . . . 1 . . . . . . . . . . . . . 1 . . . 4 1 Data Loss (minor) 50 | . . . 1 1 . 5 5 . . 1 2 . . . . . . 7 2 1 3 5 . 8 9 Data Loss (major) 23 | . . . . . . 4 . . 1 . . . . . . . . . . . 4 1 1 5 7 Misfires 16 | . . . . . . 2 1 . 1 . . . . . . . . . 1 . 3 1 . 3 4 Alerts 5 | . . . . . . . . . . . . . . . . . . . . . . . . 5 . Misdirections 42 | . . . . . . . . . . . . . . . . . . . . . 1 9 2 15 15 Targeting Errors 86 | . . . . 5 . 6 . 2 . . . . . . . . . 2 8 . 12 3 2 19 27 Weapon Failures 17 | . . . 1 1 . 2 . . . . . . . . . . . . 2 . 3 1 . 2 5 Overload Shots 2 | . . . . . . . . . . . . . . . . . . . . . . 2 . . . Overflow Damage 3525 | . . 10 20 21 11 464 891 612 . 14 . 27 297 82 3 . 214 142 45 . 32 227 59 169 185 Projectiles 125 | . . . 10 21 . . . . . . . . . 27 . . 16 . . . . . . 3 48 Explosions 271 | . . 10 10 . 11 9 . . . 14 . . . 3 . . . . 45 . 29 . . 3 137 Melee 3129 | . . . . . . 455 891 612 . . . 27 297 52 3 . 198 142 . . 3 227 59 163 . Knockbacks 3 | . . . 1 2 . . . . . . . . . . . . . . . . . . . . . Impact 1 | . . . 1 . . . . . . . . . . . . . . . . . . . . . . Kinetic 2 | . . . . 2 . . . . . . . . . . . . . . . . . . . . . Secondary . | . . . . . . . . . . . . . . . . . . . . . . . . . . Self-Inflicted Damage 857 | . 22 . 64 . . 51 37 170 12 . 25 38 . 85 . . . . 38 . 187 41 . 76 11 Shots 40 | . 1 . 4 . . 1 3 8 1 . 1 2 . 4 . . . . 3 . 2 4 . 5 1 Rammed 14 | . 3 . 4 . 3 2 . . . . . . . . . . . . . . 1 1 . . . Targets Rammed 17 | . 3 . 5 . 4 3 . . . . . . . . . . . . . . 1 1 . . . Kicked . | . . . . . . . . . . . . . . . . . . . . . . . . . . Crushed 3 | . . . 1 . 1 1 . . . . . . . . . . . . . . . . . . . Highest Temperature 471 | 36 126 21 267 250 15 261 134 204 . 251 415 15 . 42 . 266 93 259 238 . 234 471 217 324 441 Average Temperature 85 | 20 33 7 78 73 5 82 66 46 . 73 152 11 . 19 . 92 35 110 83 . 46 183 86 95 95 Received Heat Transfer 4243 | . 276 114 351 411 234 465 . 90 . 308 132 6 . 69 . 63 18 108 45 . 360 485 . 264 444 Effects 19 | . . . 1 . . . . . . . 3 . . . . . . . . . . 5 . 3 7 Shutdowns 1 | . . . . . . . . . . . . . . . . . . . . . . . . . 1 Energy Bleed 2 | . . . . . . . . . . . . . . . . . . . . . . 1 . . 1 Interference 11 | . . . 1 . . . . . . . 2 . . . . . . . . . . 3 . 3 2 Matter Decay 1 | . . . . . . . . . . . . . . . . . . . . . . . . . 1 Short Circuit 3 | . . . . . . . . . . . . . . . . . . . . . . 1 . . 2 Damage (minor) 1 | . . . . . . . . . . . 1 . . . . . . . . . . . . . . Siege Activations 15 | . . . . . . . . . . . . . . . . . . . 2 . 5 2 . 5 1 Total Turns 310 | . . . . . . . . . . . . . . . . . . . 95 . 92 34 . 74 15 Longest Duration 92 | . . . . . . . . . . . . . . . . . . . 92 . 35 30 . 30 15 Robots Corrupted 19 | . . . . . . 1 . 1 . . . . . 2 . . . . 4 . . . . 3 8 Combat Hostiles 17 | . . . . . . 1 . 1 . . . . . 1 . . . . 4 . . . . 3 7 Parts Fried 35 | . . 2 5 . . 3 . 1 . . . . . 1 . . . . 7 . . . . 4 12 Impact Corruptions . | . . . . . . . . . . . . . . . . . . . . . . . . . . Robots Melted . | . . . . . . . . . . . . . . . . . . . . . . . . . . Combat Hostiles . | . . . . . . . . . . . . . . . . . . . . . . . . . . Parts Melted 12 | . . . 4 2 . . . . . 1 . . . . . . . . 1 . . . . 1 3 Heat Transferred 9931 | 25 425 348 2296 1358 . 100 . . . 222 185 . . . . . 37 . 1825 . 50 753 . 1567 740 Parts Sabotaged . | . . . . . . . . . . . . . . . . . . . . . . . . . . Parts Stolen . | . . . . . . . . . . . . . . . . . . . . . . . . . . Parts Stripped . | . . . . . . . . . . . . . . . . . . . . . . . . . . Power Chain Reactions 26 | . 1 4 5 1 . 2 1 2 . . . . . . . . . . 7 . 1 . . 2 . Missiles Intercepted 18 | . . . . . . . . . . . . . . . . . . . . . . . . . 18 Alert | -11 -10 -10 -9 -9 -8 -7 -7 -7 -7 -7 -6 -6 -6 -6 -6 -5 -5 -5 -5 -5 -5 -4 -4 -4 -4 ------- Run | Scr Mat Min Mat Sto Mat Fac Low Low Zio Dee Pro Fac Low Low Dat Pro Fac Ext Cet Arc Hub Fac Was Fac Arm Peak Influence 1190 | 5 527 337 876 958 627 421 . . . . . 266 . . . . 120 266 927 654 1190 616 134 413 853 Initial 583 | . 3 147 84 369 356 62 . . . . . 12 . . . . . . 96 370 228 583 134 . 176 Average 295 | 1 353 238 477 612 356 78 . . . . . 58 . . . . 35 100 587 462 573 273 104 286 424 Maximum Alert Level 4 | . 2 1 3 3 2 2 . . . . . 1 . . . . . 1 3 2 4 2 . 2 3 Low Security (%) 41 | 100 12 6 13 . 8 92 . . . . . 98 . . . . 100 92 6 . . 43 100 16 19 Level 1 29 | . 53 93 15 5 60 6 . . . . . 1 . . . . . 7 16 48 18 38 . 77 30 Level 2 22 | . 33 . 62 66 31 . . . . . . . . . . . . . 42 52 59 18 . 6 23 Level 3 6 | . . . 9 28 . . . . . . . . . . . . . . 33 . 18 . . . 26 Level 4 . | . . . . . . . . . . . . . . . . . . . . . 4 . . . . Level 5 . | . . . . . . . . . . . . . . . . . . . . . . . . . . High Security . | . . . . . . . . . . . . . . . . . . . . . . . . . . Max Security . | . . . . . . . . . . . . . . . . . . . . . . . . . . Squads Dispatched 60 | . 5 . 4 8 1 11 . . . . . 2 . . . . 3 1 . . 10 5 . 6 4 Investigation 11 | . 2 . 1 1 . 5 . . . . . 1 . . . . 1 . . . . . . . . Extermination 18 | . . . . . . 5 . . . . . 1 . . . . 2 . . . 2 2 . 2 4 Reinforcement 25 | . 3 . 3 4 1 1 . . . . . . . . . . . 1 . . 6 3 . 3 . Assault 5 | . . . . 3 . . . . . . . . . . . . . . . . 2 . . . . Garrison 1 | . . . . . . . . . . . . . . . . . . . . . . . . 1 . Intercept . | . . . . . . . . . . . . . . . . . . . . . . . . . . Construction Impeded 4 | . . . . . . . . . . . . . . . . . . . . . 1 1 . 2 . Haulers Reinforced . | . . . . . . . . . . . . . . . . . . . . . . . . . . Stealth | -11 -10 -10 -9 -9 -8 -7 -7 -7 -7 -7 -6 -6 -6 -6 -6 -5 -5 -5 -5 -5 -5 -4 -4 -4 -4 --------- Run | Scr Mat Min Mat Sto Mat Fac Low Low Zio Dee Pro Fac Low Low Dat Pro Fac Ext Cet Arc Hub Fac Was Fac Arm Distress Signals 26 | . . . 3 4 3 2 . . . . . 1 . . . . . 1 2 . . 2 . 4 4 Communications Jammed . | . . . . . . . . . . . . . . . . . . . . . . . . . . Distress Signals . | . . . . . . . . . . . . . . . . . . . . . . . . . . Times Spotted 448 | . 31 9 56 49 18 40 3 4 . 10 6 12 . 9 . 1 10 17 21 5 26 28 1 41 51 Peak Tracking Total 12 | . 5 2 6 9 4 11 3 4 . 5 5 5 . 5 . 1 2 5 7 7 5 9 1 6 12 Tactical Retreats 32 | . 1 1 8 7 1 6 . . . . . 2 . 2 . . . . . . . 2 . 2 . Traps | -11 -10 -10 -9 -9 -8 -7 -7 -7 -7 -7 -6 -6 -6 -6 -6 -5 -5 -5 -5 -5 -5 -4 -4 -4 -4 ------- Run | Scr Mat Min Mat Sto Mat Fac Low Low Zio Dee Pro Fac Low Low Dat Pro Fac Ext Cet Arc Hub Fac Was Fac Arm Traps Triggered 26 | . . . 5 4 . 1 . . . . . . . . . . 3 . . . 4 4 . 4 1 Indirectly 3 | . . . . . . . . . . . . . . . . . . . . . . . . 3 . Trap Hack Attempts . | . . . . . . . . . . . . . . . . . . . . . . . . . . Triggered . | . . . . . . . . . . . . . . . . . . . . . . . . . . Disarmed . | . . . . . . . . . . . . . . . . . . . . . . . . . . Reprogrammed . | . . . . . . . . . . . . . . . . . . . . . . . . . . Reused 2 | . . . . . . . . . . . . . . . 2 . . . . . . . . . . Traps Extracted . | . . . . . . . . . . . . . . . . . . . . . . . . . . Installed 9 | . . 3 . . . . . . . . . . . . 6 . . . . . . . . . . Triggered 2 | . . . . . . . . 1 . . . . . . . . . . . . . . . 1 . Machines | -11 -10 -10 -9 -9 -8 -7 -7 -7 -7 -7 -6 -6 -6 -6 -6 -5 -5 -5 -5 -5 -5 -4 -4 -4 -4 ---------- Run | Scr Mat Min Mat Sto Mat Fac Low Low Zio Dee Pro Fac Low Low Dat Pro Fac Ext Cet Arc Hub Fac Was Fac Arm Machines Disabled 54 | . 3 2 7 1 . . . . . 2 . . . . 1 . 1 5 2 . 15 2 . 3 10 Max in Single Turn 7 | . 3 1 1 1 . . . . . . . . . . 1 . 1 . 1 . 7 1 . 1 1 Garrison Access 2 | . . . . . . 1 . . . . . . . . . . . . . . . . . 1 . Network Hub 2 | . . . . . . . . . . . . . . . . . . . . . 2 . . . . Energy Cycler 1 | . . . . . . . . . . . . . . . . . . 1 . . . . . . . Machines Sabotaged . | . . . . . . . . . . . . . . . . . . . . . . . . . . Garrisons Compromised . | . . . . . . . . . . . . . . . . . . . . . . . . . . Overloaded Fab Kills . | . . . . . . . . . . . . . . . . . . . . . . . . . . Fab Network Shutdowns . | . . . . . . . . . . . . . . . . . . . . . . . . . . Hacking | -11 -10 -10 -9 -9 -8 -7 -7 -7 -7 -7 -6 -6 -6 -6 -6 -5 -5 -5 -5 -5 -5 -4 -4 -4 -4 --------- Run | Scr Mat Min Mat Sto Mat Fac Low Low Zio Dee Pro Fac Low Low Dat Pro Fac Ext Cet Arc Hub Fac Was Fac Arm Machines Accessed 106 | . 5 . 6 11 2 10 . . 1 . . 10 . 1 4 . 7 12 . 1 2 9 . 15 10 Terminals 70 | . 3 . 5 9 2 7 . . . . . 7 . . . . 4 12 . . 2 6 . 9 4 Fabricators 10 | . . . . . . 1 . . . . . 1 . . . . 1 . . . . . . 2 5 Repair Stations 5 | . . . . 1 . . . . . . . 1 . . . . 1 . . . . . . 1 1 Recycling Units 4 | . 2 . 1 . . . . . . . . . . . . . . . . . . 1 . . . Scanalyzers 7 | . . . . . . 1 . . . . . 1 . . . . 1 . . . . 2 . 2 . Garrison Access 3 | . . . . 1 . 1 . . . . . . . . . . . . . . . . . 1 . Total Hacks 518 | . 8 . 14 28 7 30 . . 5 . . 32 . 1 27 . 22 32 . 24 11 56 . 137 84 Successful 292 | . 4 . 7 19 5 11 . . 5 . . 20 . 1 27 . 14 22 . 24 6 33 . 51 43 Failed 225 | . 4 . 7 9 2 19 . . . . . 12 . . . . 8 10 . . 5 22 . 86 41 Catastrophic 39 | . . . 2 2 . 4 . . . . . 3 . . . . . 1 . . . 5 . 19 3 Database Lockouts 1 | . . . . . . . . . . . . . . . . . . . . . . 1 . . . Manual 183 | . 5 . 12 11 3 9 . . . . . 19 . . . . 3 11 1 . 9 25 . 50 25 Terminals 323 | . 5 . 13 24 7 22 . . . . . 21 . . . . 9 32 . . 11 42 . 97 40 Fabricators 60 | . . . . . . 2 . . . . . 5 . . . . 3 . . . . . . 12 38 Repair Stations 18 | . . . . 2 . . . . . . . 3 . . . . 2 . . . . . . 5 6 Recycling Units 7 | . 3 . 1 . . . . . . . . . . . . . . . . . . 3 . . . Scanalyzers 47 | . . . . . . 4 . . . . . 3 . . . . 8 . . . . 11 . 21 . Garrison Access 6 | . . . . 2 . 2 . . . . . . . . . . . . . . . . . 2 . Terminal Hacks 182 | . 1 . 5 13 4 5 . . 5 . . 8 . 1 27 . 5 20 . 24 4 18 . 29 13 Record 42 | . . . . . 1 . . . . . . . . . 11 . . . . 24 . . . 5 1 Part Schematic 37 | . . . 1 1 . 2 . . 5 . . 2 . . 8 . 1 6 . . . 3 . 7 1 Robot Schematic 9 | . . . . . . . . . . . . . . . 8 . . . . . . 1 . . . Robot Analysis 6 | . . . . . . . . . . . . . . . . . 1 . . . . . . 5 . Prototype ID Bank 7 | . 1 . 1 1 1 . . . . . . . . . . . . 1 . . . 1 . . 1 Open Door 14 | . . . . 5 . . . . . . . . . 1 . . 1 6 . . . . . . 1 Branch Access Points 6 | . . . 1 . 1 1 . . . . . 1 . . . . . . . . . 1 . 1 . Machine Index 1 | . . . . . . . . . . . . . . . . . . . . . . 1 . . . Terminal Index 5 | . . . . . . 1 . . . . . 1 . . . . 1 . . . . 1 . 1 . Fabricator Index 1 | . . . . . . . . . . . . . . . . . . . . . . . . . 1 Recycling Unit Index 2 | . . . 1 . . . . . . . . . . . . . . 1 . . . . . . . Scanalyzer Index 3 | . . . . . . . . . . . . 1 . . . . . . . . . 1 . 1 . Alert Level 23 | . . . 1 1 . 1 . . . . . 2 . . . . 1 4 . . 1 4 . 4 4 Unreport Threat 11 | . . . . 1 . . . . . . . 1 . . . . . 1 . . . 3 . 2 3 Locate Traps 3 | . . . . . . . . . . . . . . . . . . 1 . . . . . 2 . Recall Assault 1 | . . . . . . . . . . . . . . . . . . . . . 1 . . . . Registered Components 1 | . . . . 1 . . . . . . . . . . . . . . . . . . . . . Zone Layout 10 | . . . . 3 1 . . . . . . . . . . . . . . . 2 2 . 1 1 Fabricator Hacks 27 | . . . . . . 1 . . . . . 2 . . . . 2 . . . . . . 4 18 Network Status 3 | . . . . . . . . . . . . . . . . . . . . . . . . . 3 Load Schematic 10 | . . . . . . . . . . . . 1 . . . . 1 . . . . . . 2 6 Build 14 | . . . . . . 1 . . . . . 1 . . . . 1 . . . . . . 2 9 Repair Station Hacks 11 | . . . . 2 . . . . . . . 2 . . . . 2 . . . . . . 2 3 Scan Component 6 | . . . . 1 . . . . . . . 1 . . . . 1 . . . . . . 1 2 Repair 5 | . . . . 1 . . . . . . . 1 . . . . 1 . . . . . . 1 1 Recycling Unit Hacks 2 | . . . . . . . . . . . . . . . . . . . . . . 2 . . . Report Inventory 1 | . . . . . . . . . . . . . . . . . . . . . . 1 . . . Retrieve Components 1 | . . . . . . . . . . . . . . . . . . . . . . 1 . . . Scanalyzer 29 | . . . . . . 2 . . . . . 3 . . . . 5 . . . . 9 . 10 . Insert Component 13 | . . . . . . 1 . . . . . 1 . . . . 3 . . . . 2 . 6 . Analyze 16 | . . . . . . 1 . . . . . 2 . . . . 2 . . . . 7 . 4 . Garrison Access Hacks 2 | . . . . . . 1 . . . . . . . . . . . . . . . . . 1 . Seal Access 2 | . . . . . . 1 . . . . . . . . . . . . . . . . . 1 . Unauthorized Hacks 39 | . 3 . 2 4 1 2 . . . . . 5 . . . . . 2 . . 2 4 . 5 9 Terminals 26 | . 1 . 1 4 1 2 . . . . . 3 . . . . . 2 . . 2 4 . 2 4 Track 4 | . . . . 3 . . . . . . . . . . . . . . . . . . . . 1 Assimilate 3 | . . . . . . 1 . . . . . 1 . . . . . . . . . 1 . . . Botnet 16 | . . . . 1 . 1 . . . . . 2 . . . . . 2 . . 2 3 . 2 3 Operators 3 | . 1 . 1 . 1 . . . . . . . . . . . . . . . . . . . . Fabricators 10 | . . . . . . . . . . . . 2 . . . . . . . . . . . 3 5 Prioritize 4 | . . . . . . . . . . . . 1 . . . . . . . . . . . 1 2 Siphon 6 | . . . . . . . . . . . . 1 . . . . . . . . . . . 2 3 Repair Stations . | . . . . . . . . . . . . . . . . . . . . . . . . . . Recycling Units 3 | . 2 . 1 . . . . . . . . . . . . . . . . . . . . . . Tunnel 3 | . 2 . 1 . . . . . . . . . . . . . . . . . . . . . . Scanalyzers . | . . . . . . . . . . . . . . . . . . . . . . . . . . Garrison Access . | . . . . . . . . . . . . . . . . . . . . . . . . . . Data Cores Recovered 1 | . . . . . . . . . . . . . . . . . . . . . . . . 1 . Used . | . . . . . . . . . . . . . . . . . . . . . . . . . . Hacking Detections 56 | . 2 . 2 7 2 9 . . . . . 8 . . . . 3 4 . . 2 6 . 7 4 Full Trace Events 7 | . . . . . . 5 . . . . . 1 . . . . 1 . . . . . . . . Feedback Events 1 | . . . . . . . . . . . . . . . . . 1 . . . . . . . . Corruption 1 | . . . . . . . . . . . . . . . . . 1 . . . . . . . . Feedback Blocked . | . . . . . . . . . . . . . . . . . . . . . . . . . . Robot Schematics Acquired 9 | . . . . . . . . . . . . . . . 8 . . . . . . 1 . . . Robots Built . | . . . . . . . . . . . . . . . . . . . . . . . . . . Matter . | . . . . . . . . . . . . . . . . . . . . . . . . . . Time . | . . . . . . . . . . . . . . . . . . . . . . . . . . Total Robot Build Rating . | . . . . . . . . . . . . . . . . . . . . . . . . . . Part Schematics Acquired 44 | . . . 1 1 . 2 . . 5 . . 3 . . 8 . 3 5 . . . 5 . 10 1 Parts Built 15 | . . . . . . 1 . . . . . 1 . . . . 1 . . . . . . 1 11 Matter 2779 | . . . . . . 190 . . . . . 285 . . . . 190 . . . . . . 252 1862 Time 1045 | . . . . . . 47 . . . . . 152 . . . . 47 . . . . . . 84 715 Total Part Build Rating 94 | . . . . . . 5 . . . . . 5 . . . . 5 . . . . . . 4 75 Parts Repaired 5 | . . . . 1 . . . . . . . 1 . . . . 1 . . . . . . 1 1 Time 269 | . . . . 32 . . . . . . . 40 . . . . 40 . . . . . . 54 103 Parts Recycled . | . . . . . . . . . . . . . . . . . . . . . . . . . . Recycled Matter . | . . . . . . . . . . . . . . . . . . . . . . . . . . Retrieved Matter . | . . . . . . . . . . . . . . . . . . . . . . . . . . Retrieved Components 10 | . . . . . . . . . . . . . . . . . . . . . . 10 . . . Parts Scanalyzed 9 | . . . . . . 1 . . . . . 1 . . . . 2 . . . . 2 . 3 . Part Schematics Acquired 8 | . . . . . . . . . . . . 1 . . . . 2 . . . . 2 . 3 . Parts Damaged . | . . . . . . . . . . . . . . . . . . . . . . . . . . Bothacking | -11 -10 -10 -9 -9 -8 -7 -7 -7 -7 -7 -6 -6 -6 -6 -6 -5 -5 -5 -5 -5 -5 -4 -4 -4 -4 ------------ Run | Scr Mat Min Mat Sto Mat Fac Low Low Zio Dee Pro Fac Low Low Dat Pro Fac Ext Cet Arc Hub Fac Was Fac Arm Used RIF Installer . | . . . . . . . . . . . . . . . . . . . . . . . . . . Robots Hacked . | . . . . . . . . . . . . . . . . . . . . . . . . . . Non-combat . | . . . . . . . . . . . . . . . . . . . . . . . . . . Combat . | . . . . . . . . . . . . . . . . . . . . . . . . . . Robot Hacks Applied . | . . . . . . . . . . . . . . . . . . . . . . . . . . Relay Couplers Released . | . . . . . . . . . . . . . . . . . . . . . . . . . . Robots Rewired 12 | . . . . . . . . . . . . . . . . . . 5 . . . . . . 7 Allies Hacked 2 | . . . . . . . . . . . . . . . . . . . . . . . . . 2 Hacks Repelled 3 | . . . . . . . . . . . . . . . . . . . . . . . . . 3 Allies | -11 -10 -10 -9 -9 -8 -7 -7 -7 -7 -7 -6 -6 -6 -6 -6 -5 -5 -5 -5 -5 -5 -4 -4 -4 -4 -------- Run | Scr Mat Min Mat Sto Mat Fac Low Low Zio Dee Pro Fac Low Low Dat Pro Fac Ext Cet Arc Hub Fac Was Fac Arm Total Allies 60 | . . . . 2 . 1 . . 9 . . 1 . . . . . 15 5 . . . 20 . 7 Largest Group 20 | . . . . 2 . 1 . . 9 9 3 1 . . . . . 9 7 3 . . 20 19 4 Highest-Rated Group 768 | . . . . 62 . 10 . . 271 271 88 26 . . . . . 292 658 282 . . 768 718 184 Highest-Rated Ally 156 | . . . . 31 . 10 . . 37 37 31 26 . . . . . 156 156 94 . . 50 46 46 Total Orders . | . . . . . . . . . . . . . . . . . . . . . . . . . . Ally Attacks 581 | . . . . 27 . . . . . 131 6 . . . . . . 134 57 25 . . 11 118 72 Total Damage 11664 | . . . . 505 . . . . . 1657 105 . . . . . . 2295 1870 1057 . . 246 2811 1118 Kills 91 | . . . . 5 . . . . . 15 . . . . . . . 21 13 8 . . 1 20 8 Allies Corrupted 4 | . . . . . . . . . . . . . . . . . . . . . . . . . 4 Allies Melted . | . . . . . . . . . . . . . . . . . . . . . . . . . . Intel | -11 -10 -10 -9 -9 -8 -7 -7 -7 -7 -7 -6 -6 -6 -6 -6 -5 -5 -5 -5 -5 -5 -4 -4 -4 -4 ------- Run | Scr Mat Min Mat Sto Mat Fac Low Low Zio Dee Pro Fac Low Low Dat Pro Fac Ext Cet Arc Hub Fac Was Fac Arm Robot Analysis Total 6 | . . . . . . . . . . . . . . . . . 1 . . . . . . 5 . Derelict Logs Recovered 9 | . . . . . . . 1 2 2 . 1 . . 1 . 2 . . . . . . . . . Drone Launches . | . . . . . . . . . . . . . . . . . . . . . . . . . . Drone Recoveries . | . . . . . . . . . . . . . . . . . . . . . . . . . . Exploration | -11 -10 -10 -9 -9 -8 -7 -7 -7 -7 -7 -6 -6 -6 -6 -6 -5 -5 -5 -5 -5 -5 -4 -4 -4 -4 ------------- Run | Scr Mat Min Mat Sto Mat Fac Low Low Zio Dee Pro Fac Low Low Dat Pro Fac Ext Cet Arc Hub Fac Was Fac Arm Turns Passed 27812 | 92 952 735 1828 1240 2192 2752 651 339 2233 1858 649 721 253 566 254 929 1234 1504 645 75 950 1180 512 1805 1663 Spaces Moved 15606 | 47 554 479 884 487 310 1540 480 220 1966 1161 451 989 233 416 279 533 538 799 234 44 327 807 269 830 729 Core 39 | 8 . . . . . . . . 25 5 . . . . . . 1 . . . . . . . . Treads 6249 | 39 229 . 753 487 310 764 . . . 173 . . . . . . 523 799 234 44 327 339 156 827 245 Legs 404 | . . 169 87 . . . . 2 . . . . . . . . . . . . . . . 3 143 Wheels 3535 | . 325 310 44 . . 776 480 218 990 158 . . . . . 220 14 . . . . . . . . Hover 5379 | . . . . . . . . . 951 825 451 989 233 416 279 313 . . . . . 468 113 . 341 Flight . | . . . . . . . . . . . . . . . . . . . . . . . . . . Fastest Speed 34 | 50 90 110 110 160 160 100 100 110 38 88 40 34 88 88 38 38 120 160 160 160 160 38 38 160 63 Average Speed 125 | 145 123 141 157 160 160 132 104 128 94 141 116 41 88 88 68 117 160 162 160 160 160 97 176 164 140 Slowest Speed 1800 | 160 160 240 240 180 180 180 120 420 1800 1650 450 101 88 88 88 200 800 163 180 160 180 180 400 270 290 Overloaded Moves 10 | . . . . . . . . . . . . 10 . . . . . . . . . . . . . Propulsion Burnouts . | . . . . . . . . . . . . . . . . . . . . . . . . . . Robots Hopped . | . . . . . . . . . . . . . . . . . . . . . . . . . . Cave-ins Triggered . | . . . . . . . . . . . . . . . . . . . . . . . . . . Exploration Rate (%) 53 | 5 77 83 75 81 22 38 53 44 82 72 50 25 41 46 80 65 15 83 64 61 35 28 86 33 40 Regions Visited 25 Branch Regions 16 Pre-discovered Areas 6 | . 2 . 1 . . . . 1 1 . . . . . 1 . . . . . . . . . . Known Exits Taken 19 | . . . 1 . 1 1 1 1 1 1 1 1 1 1 1 1 1 1 1 1 1 . . 1 . Unknown Exits Taken 4 | 1 1 1 . 1 . . . . . . . . . . . . . . . . . . . . . Scrap Searched 19 | . . 1 . . . . 6 2 4 . 2 . . . . 4 . . . . . . . . . Spaces Dug 207 | . . 4 . 1 . 27 6 1 5 . . 30 . 2 . 32 10 2 . . 8 8 . 66 5 Terrain Destroyed 1141 | . . 15 12 6 21 33 12 11 5 23 36 58 . 127 . 44 11 2 62 . 362 78 . 93 130 Melee 117 | . . . . 1 . 26 6 1 5 . . 29 . 2 . 4 10 2 . . 6 8 . 17 . Projectile 174 | . . . . . . 2 . . . 3 2 1 . . . 40 1 . . . 31 11 . 68 15 AOE 850 | . . 15 12 5 21 5 6 10 . 20 34 28 . 125 . . . . 62 . 325 59 . 8 115 Terrain Rammed . | . . . . . . . . . . . . . . . . . . . . . . . . . . Walls Destroyed . | . . . . . . . . . . . . . . . . . . . . . . . . . . Machines Disabled . | . . . . . . . . . . . . . . . . . . . . . . . . . . Actions | -11 -10 -10 -9 -9 -8 -7 -7 -7 -7 -7 -6 -6 -6 -6 -6 -5 -5 -5 -5 -5 -5 -4 -4 -4 -4 --------- Run | Scr Mat Min Mat Sto Mat Fac Low Low Zio Dee Pro Fac Low Low Dat Pro Fac Ext Cet Arc Hub Fac Was Fac Arm Total 21809 | 63 684 520 1113 764 1916 2051 580 249 2285 1341 560 1212 266 584 340 773 822 978 364 49 592 1071 303 1083 1246 Wait 3776 | . 10 16 20 114 1542 320 24 1 195 65 65 151 23 134 . 174 176 105 13 5 145 95 5 98 280 Move 15582 | 46 553 478 883 486 309 1539 479 219 1965 1160 450 988 232 415 278 532 537 798 233 43 326 807 268 829 729 Hop . | . . . . . . . . . . . . . . . . . . . . . . . . . . Pick Up 262 | 8 12 1 20 14 2 13 21 1 27 26 10 6 . 8 15 2 15 4 12 . 4 14 8 3 16 Fast Attach 219 | 7 5 1 22 14 7 15 1 4 12 17 2 3 2 . 4 3 19 8 10 . 11 10 4 11 27 Attach 109 | . 3 1 4 5 . 8 1 1 2 9 9 10 . 1 3 2 4 1 . 1 2 20 2 2 18 Detach 36 | . . . . . . . 2 . 1 2 1 3 . . . 1 . . 2 . 1 6 6 1 10 Swap 156 | . 2 1 11 8 2 21 7 3 1 9 3 2 . 5 1 3 5 6 6 . 19 11 1 11 18 Drop 341 | . 5 1 31 26 6 21 14 3 39 30 11 5 2 . 27 4 20 11 23 . 5 13 5 10 29 Fire 894 | 2 91 18 117 96 44 50 3 8 5 18 9 2 . 15 . 40 3 . 65 . 65 41 . 95 107 Melee 346 | . . . . 1 . 61 28 9 38 5 . 42 7 6 6 12 43 17 . . 13 31 4 23 . Ram . | . . . . . . . . . . . . . . . . . . . . . . . . . . Kick 1 | . . . 1 . . . . . . . . . . . . . . . . . . . . . . Crush 16 | . 3 . 4 . 4 3 . . . . . . . . . . . . . . 1 1 . . . Escape Stasis 23 | . . . . . . . . . . . . . . . . . . 1 . . . 22 . . . Rewire 39 | . . . . . . . . . . . . . . . . . . 27 . . . . . . 12 Trap 9 | . . 3 . . . . . . . . . . . . 6 . . . . . . . . . . Miscellaneous . | . . . . . . . . . . . . . . . . . . . . . . . . . . Route ------- -11/Scrapyard -10/Materials (discovered 4 exits: *Mat x3 / [*Min]) -10/Mines (discovered 2 exits: *Mat x2) -9/Materials (discovered 4 exits: *Mat x2 / *Min / *Sto) -9/Storage -8/Materials -7/Factory (discovered 3 exits: *Fac / *Low x2) -7/Lower Caves -7/Lower Caves (discovered 2 exits: *Fac / *Zio) -7/Zion (discovered 2 exits: *Dee / [*Pro]) -7/Deep Caves -6/Proximity Caves -6/Factory (discovered 4 exits: Fac x2 / *Low x2) -6/Lower Caves -6/Lower Caves -6/Data Miner -5/Proximity Caves -5/Factory (discovered 4 exits: Fac / *Upp x2 / *Ext) -5/Extension (discovered 2 exits: *Fac / *Cet) -5/Cetus (discovered 2 exits: *Fac / *Arc) -5/Archives -5/Hub_04(d) (discovered 2 exits: *Fac x2) -4/Factory (discovered 3 exits: *Upp x2 / Arm) -4/Waste -4/Factory (discovered 4 exits: *Res / Upp x2 / *Arm) -4/Armory History --------- Turn | Location | Event 20 | -11/Scrapyard | Discovered new exit (range 15) 93 | -11/Scrapyard | Entered Materials 324 | -10/Materials | Build established: Mutant 353 | -10/Materials | Lost 3 parts (1p2w) 447 | -10/Materials | Discovered new exit (range 14) 651 | -10/Materials | Build established: Scavenger-Mutant 768 | -10/Materials | Discovered new exit (range 15) 852 | -10/Materials | Discovered new exit (range 15) 894 | -10/Materials | Discovered new exit (range 15) 1045 | -10/Materials | Entered Mines 1074 | -10/Mines | Discovered new exit (range 10) 1127 | -10/Mines | Core integrity fell below 50% 1192 | -10/Mines | Build established: Mutant 1290 | -10/Mines | Found a hidden stash of uninstalled traps 1394 | -10/Mines | Discovered new exit (range 9) 1623 | -10/Mines | Found a damaged Exp. Sensor Array with a note attached 1627 | -10/Mines | Found Prototype Device 1780 | -10/Mines | Entered Materials 1780 | -9/Materials | Evolved 2 slots: Propulsion x1, Utility x1 1806 | -9/Materials | Discovered new exit (range 9) 2023 | -9/Materials | Lost 3 parts (2n1w) 2350 | -9/Materials | Destroyed 9 combat bots 2935 | -9/Materials | Discovered new exit (range 16) 3093 | -9/Materials | Identified exit to Mines 3093 | -9/Materials | Identified exit to Storage 3481 | -9/Materials | Destroyed 8 combat bots 3519 | -9/Materials | Discovered new exit (range 16) 3608 | -9/Materials | Entered Storage 3668 | -9/Storage | Core integrity fell below 50% 3901 | -9/Storage | Met a pair of Derelict thieves 4129 | -9/Storage | Build established: Scavenger-Mutant 4187 | -9/Storage | Repaired Med. Armor Plating 4665 | -9/Storage | Core integrity fell below 20% 4679 | -9/Storage | Discovered new exit (range 16) 4689 | -9/Storage | Found Prototype Launcher 4689 | -9/Storage | Identified Scatter Rocket Array 4808 | -9/Storage | First assault squad dispatched 4848 | -9/Storage | Entered Materials 4848 | -8/Materials | Evolved 2 slots: Propulsion x1, Utility x1 5155 | -8/Materials | Discovered new exit (range 10) 7039 | -8/Materials | Identified exit to Factory 7040 | -8/Materials | Entered Factory 7040 | -7/Factory | Evolved 2 slots: Utility x2 7301 | -7/Factory | Identified Exp. Sensor Array 7321 | -7/Factory | Identified exit to Lower Caves 7467 | -7/Factory | Lost 4 parts (1n1u2w) 7518 | -7/Factory | Fabricated Imp. Hacking Suite (x1) 9029 | -7/Factory | Build established: Hacker-Mutant 9232 | -7/Factory | Discovered new exit (range 11) 9792 | -7/Factory | Entered Lower Caves 9864 | -7/Lower Caves | Encountered a Warlord checkpoint 10333 | -7/Lower Caves | Learned Factory emergency access door positions 10372 | -7/Lower Caves | Discovered new exit (range 15) 10442 | -7/Lower Caves | Identified exit to Lower Caves 10443 | -7/Lower Caves | Entered another Lower Caves area 10453 | -7/Lower Caves | Discovered new exit (range 10) 10457 | -7/Lower Caves | Build established: Hauler-Mutant 10723 | -7/Lower Caves | Encountered a Warlord checkpoint 10775 | -7/Lower Caves | Discovered new exit (range 6) 10781 | -7/Lower Caves | Identified exit to Zion 10782 | -7/Lower Caves | Entered Zion 10872 | -7/Zion | System corruption cleaned by Quarantine Array 10885 | -7/Zion | Learned Factory fabricator intel 10933 | -7/Zion | Gained Derelict followers 10963 | -7/Zion | Discovered new exit (range 15) 10989 | -7/Zion | Received a hallucinogenic algorithm 11124 | -7/Zion | Gained Derelict followers 11291 | -7/Zion | Gained Derelict followers 11384 | -7/Zion | Found Prototype Processor 11384 | -7/Zion | Identified Exp. Armor Integrity Analyzer 11387 | -7/Zion | Found Prototype Processor 11387 | -7/Zion | Identified Exp. Melee Analysis Suite 11391 | -7/Zion | Found Exp. Melee Analysis Suite 11395 | -7/Zion | Found Prototype Processor 11395 | -7/Zion | Identified Exp. Core Analyzer 11424 | -7/Zion | Found Exp. Armor Integrity Analyzer 11429 | -7/Zion | Found Prototype Hackware 11694 | -7/Zion | Learned 4 Factory zone layouts 11731 | -7/Zion | Found CR-A16's Pointy Stick 11805 | -7/Zion | Learned location of 1 exit from Lower Caves 12499 | -7/Zion | Build established: Hacker-Mutant 12852 | -7/Zion | Discovered new exit (range 3) 12988 | -7/Zion | Identified exit to Deep Caves 12988 | -7/Zion | Saw the warning signs outside the Deep Caves entrance 13015 | -7/Zion | Entered Deep Caves 13015 | -7/Deep Caves | Accompanied by 9 allies 13156 | -7/Deep Caves | Build established: Hauler-Mutant 13211 | -7/Deep Caves | Z-Facility disabled 13267 | -7/Deep Caves | Attacked by Z-Imprinter 13275 | -7/Deep Caves | Core integrity fell below 50% 13292 | -7/Deep Caves | Destroyed Z-Imprinter 13321 | -7/Deep Caves | Lost 3 parts (1p1n1u) 13348 | -7/Deep Caves | Found Prototype Protection 13348 | -7/Deep Caves | Identified Zio. Weapon Casing 13764 | -7/Deep Caves | Lost 4 parts (1u3w) 13786 | -7/Deep Caves | Found Zio. Weapon Casing 14000 | -7/Deep Caves | Build established: Scavenger-Mutant 14346 | -7/Deep Caves | Discovered new exit (range 6) 14431 | -7/Deep Caves | Found Surveybot 24 Chip 14433 | -7/Deep Caves | Found Surveybot 24 Scanner 14535 | -7/Deep Caves | Found Zio. Weapon Casing 14537 | -7/Deep Caves | Found Zio. Weapon Casing 14540 | -7/Deep Caves | Found Prototype Protection 14577 | -7/Deep Caves | Found Prototype Protection 14659 | -7/Deep Caves | Build established: Hauler-Mutant 14845 | -7/Deep Caves | Identified exit to Proximity Caves 14873 | -7/Deep Caves | Entered Proximity Caves 14873 | -6/Proximity Caves | Accompanied by 3 allies 14984 | -6/Proximity Caves | Lost 5 parts (1p2n2w) 15495 | -6/Proximity Caves | Discovered new exit (range 6) 15521 | -6/Proximity Caves | Identified exit to Factory 15522 | -6/Proximity Caves | Attracted the attention of an 0b10 outpost 15522 | -6/Proximity Caves | Entered Factory 15522 | -6/Factory | Evolved 2 slots: Utility x2 15523 | -6/Factory | Identified exit to Factory 15525 | -6/Factory | Loaded intel: 6 fabricator locations 15658 | -6/Factory | Build established: Hacker-Mutant 15776 | -6/Factory | Identified exit to Lower Caves 15815 | -6/Factory | Identified Zio. Heavy Carapace 15842 | -6/Factory | Identified Exp. System Shield 16035 | -6/Factory | Fabricated Cld. Aerolev Unit (x1) 16154 | -6/Factory | Repaired Cld. Aerolev Unit 16243 | -6/Factory | Entered Lower Caves 16244 | -6/Lower Caves | Identified exit to Lower Caves 16496 | -6/Lower Caves | Entered another Lower Caves area 16506 | -6/Lower Caves | Encountered a Warlord checkpoint 16650 | -6/Lower Caves | Attracted the attention of an 0b10 checkpoint 16782 | -6/Lower Caves | Learned Factory security intel 17036 | -6/Lower Caves | Discovered new exit (range 16) 17061 | -6/Lower Caves | Identified exit to Data Miner 17062 | -6/Lower Caves | Entered Data Miner 17062 | -6/Data Miner | Discovered new exit (range 6) 17079 | -6/Data Miner | Met Data Miner 17099 | -6/Data Miner | Learned location of Section 7 (-3) 17099 | -6/Data Miner | Acquired the access code to Warlord's prototype stash 17114 | -6/Data Miner | Received God Mode back door access code from Data Miner 17235 | -6/Data Miner | Data Conduit disabled 17315 | -6/Data Miner | Identified exit to Proximity Caves 17316 | -6/Data Miner | Entered Proximity Caves 17318 | -5/Proximity Caves | Learned Factory terminal intel 17474 | -5/Proximity Caves | Attracted the attention of an 0b10 checkpoint 17691 | -5/Proximity Caves | Learned location of 1 exit from Factory 18239 | -5/Proximity Caves | Discovered exit to Factory (range 5) 18245 | -5/Proximity Caves | Entered Factory 18245 | -5/Factory | Evolved 2 slots: Utility x2 18246 | -5/Factory | Identified exit to Upper Caves 18246 | -5/Factory | Identified exit to Extension 18247 | -5/Factory | Identified exit to Factory 18249 | -5/Factory | Loaded intel: 22 terminal locations 18774 | -5/Factory | Discovered exit to Upper Caves (range 5) 18987 | -5/Factory | Fabricated Imp. Proton Missile Launcher (x1) 19293 | -5/Factory | Repaired Cld. Aerolev Unit 19479 | -5/Factory | Entered Extension 19727 | -5/Extension | Rescued a captive Derelict 19727 | -5/Extension | Rescued a captive Derelict 19742 | -5/Extension | Rescued a captive Derelict 19743 | -5/Extension | Rescued a captive Derelict 19762 | -5/Extension | Rescued a captive Derelict 20397 | -5/Extension | Spotted B-75 Beast 20403 | -5/Extension | Allies destroyed B-75 Beast 20405 | -5/Extension | Spotted B-75 Beast 20417 | -5/Extension | Allies destroyed B-75 Beast 20465 | -5/Extension | Rescued a captive Derelict 20465 | -5/Extension | Rescued a captive Derelict 20563 | -5/Extension | Rescued a captive Derelict 20699 | -5/Extension | Rescued a captive Derelict 20739 | -5/Extension | Energy Cycler disabled 20757 | -5/Extension | Rescued A7 20969 | -5/Extension | Discovered exit to Factory (range 10) 20971 | -5/Extension | Discovered new exit (range 6) 20981 | -5/Extension | Identified exit to Cetus 20983 | -5/Extension | Entered Cetus 20983 | -5/Cetus | Accompanied by 3 allies (A7) 20988 | -5/Cetus | Acquired a Cetus Manufacturing Module code from A7 21008 | -5/Cetus | Spotted Cetus Guard 21008 | -5/Cetus | Spotted Cetus Guard 21014 | -5/Cetus | Destroyed Cetus Guard 21015 | -5/Cetus | Allies destroyed Cetus Guard 21017 | -5/Cetus | Destroyed Cetus Guard 21026 | -5/Cetus | Spotted Cetus Guard 21029 | -5/Cetus | Destroyed Cetus Guard 21051 | -5/Cetus | Destroyed 7 combat bots 21123 | -5/Cetus | Started Cetus Manufacturing Module 21134 | -5/Cetus | Door terminal overloaded 21144 | -5/Cetus | Escorted A7 to Cetus Mainframe 21148 | -5/Cetus | Manufactured an Enhanced Grunt 21169 | -5/Cetus | Discovered new exit (range 15) 21173 | -5/Cetus | Manufactured an Enhanced Grunt 21198 | -5/Cetus | Manufactured an Enhanced Grunt 21198 | -5/Cetus | Spotted Cetus Guard 21198 | -5/Cetus | Spotted Cetus Guard 21203 | -5/Cetus | Allies destroyed Cetus Guard 21204 | -5/Cetus | Spotted Cetus Guard 21205 | -5/Cetus | Destroyed Cetus Guard 21205 | -5/Cetus | Destroyed Cetus Guard 21205 | -5/Cetus | Spotted Cetus Guard 21209 | -5/Cetus | Destroyed Cetus Guard 21218 | -5/Cetus | Discovered exit to Factory (range 16) 21223 | -5/Cetus | Manufactured an Enhanced Grunt 21227 | -5/Cetus | Met Revision 17 21248 | -5/Cetus | Manufactured an Enhanced Grunt 21418 | -5/Cetus | Destroyed A7 21428 | -5/Cetus | Extracted ID and sensor layout for unrecognized location from A7's data core 21459 | -5/Cetus | Found Prototype Protection 21459 | -5/Cetus | Identified Med. Regenerative Plating 21625 | -5/Cetus | Identified exit to Archives 21628 | -5/Cetus | Entered Archives 21628 | -5/Archives | Accompanied by 3 allies 21648 | -5/Archives | Met Zhirov 21654 | -5/Archives | Reinforcements dispatched to Archives 21668 | -5/Archives | Read partially decrypted archive contents 21673 | -5/Archives | Discovered new exit (range 15) 21695 | -5/Archives | Identified exit to Hub_04(d) 21699 | -5/Archives | Reinforcements dispatched to Archives 21703 | -5/Archives | Entered Hub_04(d) 21988 | -5/Hub_04(d) | System corruption reached 10% 22003 | -5/Hub_04(d) | First assault squad dispatched 22112 | -5/Hub_04(d) | Discovered exit to Factory (range 5) 22361 | -5/Hub_04(d) | Discovered exit to Factory (range 6) 22603 | -5/Hub_04(d) | Network Hub disabled 22614 | -5/Hub_04(d) | Network Hub disabled 22653 | -5/Hub_04(d) | Entered Factory 22653 | -4/Factory | Evolved 2 slots: Utility x2 22873 | -4/Factory | Identified exit to Upper Caves 22873 | -4/Factory | Identified exit to Armory 23002 | -4/Factory | Build established: Scavenger-Mutant 23004 | -4/Factory | Central database locked down 23102 | -4/Factory | Found Quantum Capacitor 23272 | -4/Factory | Lost 9 parts (1p3n3u2w) 23357 | -4/Factory | System corruption reached 10% 23498 | -4/Factory | Build established: Hacker-Mutant 23717 | -4/Factory | Found Mni. Smartbomb Launcher 23833 | -4/Factory | Sucked down chute 23833 | -4/Factory | Entered Waste 23834 | -4/Waste | Joined by Warlord forces that had cleared the area 24130 | -4/Waste | A Compactor rumbled back to life 24130 | -4/Waste | Spotted C-40 Crusher 24135 | -4/Waste | Allies destroyed C-40 Crusher 24218 | -4/Waste | Discovered new exit (range 15) 24342 | -4/Waste | Identified exit to Factory 24345 | -4/Waste | Entered Factory 24345 | -4/Factory | Accompanied by 19 allies 24874 | -4/Factory | Garrison activated, responded to threat 25006 | -4/Factory | Fabricated Lrn. Sensor Array (x1) 25111 | -4/Factory | Discovered new exit (range 15) 25185 | -4/Factory | Identified exit to Research 25730 | -4/Factory | Repaired Centrium Medium Armor Plating 26150 | -4/Factory | Entered Armory 26619 | -4/Armory | Repaired Broken Adv. Phase Shifter? 26714 | -4/Armory | Fabricated Cmb. Antigrav System (x2) 26812 | -4/Armory | Fabricated Cmb. Antigrav System (x2) 27213 | -4/Armory | Fabricated Hcp. Storage Unit (x1) 27469 | -4/Armory | Fabricated Cmb. Antigrav System (x2) 27625 | -4/Armory | Fabricated Cmb. Antigrav System? 27670 | -4/Armory | Core integrity fell below 50% 27708 | -4/Armory | Fabricated Exp. Propulsion Shielding (x1) 27784 | -4/Armory | Fabricated Exp. Propulsion Shielding? 27805 | -4/Armory | Core integrity fell below 20% 27813 | -4/Armory | Destroyed by Y-72 Warden with Railgun Last Messages --------------- 27804_ Y-64 Sentinel crushed by falling debris. 27804_ Imp. System Shield destroyed. 27804_ System corrupted: HERF Cannon targeting data glitched. 27804_ Penetrated by Slug. 27804_ HERF Cannon destroyed. 27805_ The unstable cave ceiling collapses. 27805_ Quantum Reactor destroyed. 27806_ The unstable cave ceiling collapses. 27806_ Slug penetrates Y-72 Warden. 27808_ Slug penetrates D-63 Destroyer. 27808_ Penetrated by Slug. 27809_ Hvy. Rocket intercepted. 27809_ Y-72 Warden IFF system glitched. 27809_ Hvy. Rocket intercepted. 27810_ System corrupted: Matter fused (-5). 27811_ Hvy. Rocket intercepted. 27811_ Slug penetrates Reinforced Shell. 27812_ The unstable cave ceiling collapses. 27812_ Imp. Hacking Suite destroyed. 27813_ Hvy. Rocket intercepted. Map ----- +----------------------------------------------------+ | ?????????????????????????????????????????????????? | | ?????????????????????????????????????????????????? | | ?????????????????????????????????????????????????? | | ?????????????????????????????????????????????????? | | ?????????????????????????????????????????????????? | | ?????????????????????????????????????????????????? | | ?????????????????????????????????????????????????? | | ?????????????????????????????????????????????????? | | ?????????????????????????????????????????????????? | | ?????????????????????????????????????????????????? | | ?????????????????????????????????????????????????? | | ?????????????????????????????????????????????????? | | ?????????????????????????????????????????????????? | | ????????????????############?????????????????????? | | ????????????????# #?????????????????????? | | ?????????????????# """"" = #?????????????????????? | | ?????????????????# ""!F" #?????????????????????? | | ?????????????????# ""]"" #?????????????????????? | | ?????????????????# [! #?????????????????????? | | ?????????????????#]] ! = #?????????????????????? | | ?????????????????#]]] ! #?????????????????????? | | ?????????????????#]]*!* = #?????????????????????? | | ?????????????????#### ####???????????????????? | | ???###########???####= #####???????????????? | | ??? #???# #???????????????? | | ??"" """ "" #???# @ "" #???????????????? | | ?""" """ ="" #?### ! " ########????????? | | """ """ F" ### *" # #????????? | | ="" "|" # #????????? | | [ # """ #????????? | | ### ####### # # """ # "" ####?????? | | ??????????# % # # "" """#?????? | | ??????????# YYYd # ####+# """#?????? | | ??????????# d YY !#[ "" F"#?????? | | ??????????# #d d !|" ="" ""#?????? | | ??????????# # ###+######**""" ####?????? | | ??????????# #? ##[ #????????? | | ??????????# ## #??""""" "" "" #????????? | | ??????????# Y #?" ]]" ## """ #????????? | | ?????????? T" " " ## """ #????????? | | ????????? """]" ## #????????? | | ???????? #?+###### # ################## | | ???????##????????# ## % # #### # # | | ?????????????????## [ #% = "??" ## ## | | ???????????????" " ! |||| # "??" | | ???????????????" ## [#=|||||| # "!!" = = | | ??????????????????# = %!%*[* !!" # =% %! | | ??????????????????# # %## ## """" # # | | ?????????????????#" !## ## # # ## | | ???????????????? ## ##/######### ####? | +----------------------------------------------------+ Best States ------------- Heat Dissipation 60 Coolant Potential 80 Energy Generation 27 Energy Capacity 1160 Matter Stores 300 Matter Capacity 300 Sight Range 16 Robot Scan Range 30 Terrain Scan Range 24 Terrain Scan Density 10 Additional Mass Support 16 Armor Coverage 1350 Resistance: TH 10 Propulsion Shielding 90 Weapon Shielding 100 Point Defense Rating 160 Weapon Cycling 20 Evasion (%) 58 Melee Accuracy 12 Recoil Reduction 4 Kinecelleration 30 Offensive Hacking 33 Defensive Hacking 40 Item Schematics ----------------- Hcp. Storage Unit | -9/Materials | Hacked Shock Bomb Launcher | -9/Storage | Hacked Spear | -7/Factory | Hacked Nuclear Pulse Array | -7/Factory | Hacked Riot Gun | -7/Zion | Free Barrage Gun | -7/Zion | Free Hvy. Battle Rifle | -7/Zion | Free Flamer | -7/Zion | Free Enh. Flamer | -7/Zion | Free Cld. Aerolev Unit | -6/Factory | Scanalyzed Imp. Proton Missile Launcher | -6/Factory | Hacked Hvy. Pick | -6/Factory | Hacked Combat Drone Bay | -6/Data Miner | Free Lgt. Regenerative Plating | -6/Data Miner | Free Exp. Targeting Computer | -6/Data Miner | Free Exp. Transmission Jammer | -6/Data Miner | Free Exp. ECM Suite | -6/Data Miner | Free Cloaking Device | -6/Data Miner | Free Mni. Smartbomb Launcher | -6/Data Miner | Free Plasma Sword | -6/Data Miner | Free Exp. Armor Integrity Analyzer | -5/Factory | Scanalyzed Prc. Matter Filter | -5/Factory | Scanalyzed Adv. Force Field | -5/Factory | Hacked Imp. Linear Gravjet | -5/Extension | Hacked Exp. Weapon Shielding | -5/Extension | Hacked Adv. Particle Charger | -5/Extension | Hacked Exp. Propulsion Shielding | -5/Extension | Hacked Imp. Gyrokinetic Inverter | -5/Extension | Hacked Centrium Medium Armor Plating | -4/Factory | Scanalyzed Adv. Focal Shield | -4/Factory | Hacked Tri-rail Accelerator | -4/Factory | Hacked Adv. Coolant Injector | -4/Factory | Hacked Quantum Capacitor | -4/Factory | Scanalyzed Lrn. Sensor Array | -4/Factory | Hacked Adv. Hacking Suite | -4/Factory | Hacked Cmb. Antigrav System | -4/Factory | Scanalyzed Railgun | -4/Factory | Hacked Quantum Reactor | -4/Factory | Hacked Biometal Leg | -4/Factory | Hacked Enh. Nova Cannon | -4/Factory | Hacked Antigrav Array | -4/Factory | Hacked Adv. Phase Shifter | -4/Factory | Scanalyzed Antimatter Reactor | -4/Factory | Scanalyzed Rnf. Quantum Reactor | -4/Armory | Hacked Robot Schematics ------------------ S-27 Virus | -6/Data Miner | Free G-50 Soldier | -6/Data Miner | Free G-67 Veteran | -6/Data Miner | Free L-41 Fighter | -6/Data Miner | Free X-72 Disruptor | -6/Data Miner | Free H-66 Slayer | -6/Data Miner | Free P-70 Sage | -6/Data Miner | Free I-36 Angel | -6/Data Miner | Free O-32 Director | -4/Factory | Hacked Fabricated ------------ Imp. Hacking Suite | x1 | -7/Factory | Preloaded Cld. Aerolev Unit | x1 | -6/Factory Imp. Proton Missile Launcher | x1 | -5/Factory Lrn. Sensor Array | x1 | -4/Factory Cmb. Antigrav System | x2 | -4/Armory Cmb. Antigrav System | x2 | -4/Armory Hcp. Storage Unit | x1 | -4/Armory Cmb. Antigrav System | x2 | -4/Armory Cmb. Antigrav System | x2 | -4/Armory Exp. Propulsion Shielding | x1 | -4/Armory Exp. Propulsion Shielding | x1 | -4/Armory Alien Tech Used ----------------- None Achievements -------------- Are We The Baddies? Just Shoot The Terminal No Explosion For You Challenges ------------ None Game ------ Seed MicroRefineryChainsword Manual? 0 Play Time 05:41:54 Cumulative 148.5 hours Start 2021.06.28 @ 09:13:00 End 2021.06.29 @ 13:40:11 Sessions 3 Manual Loads 0 Difficulty Rogue Special Mode None Game No. 46 Rogue 46 Adventurer 0 Explorer 0 Win Type - Total 2 Types 2/0/0/0/0/0/0/0/0 Lore% 65 Gallery% 73 Achievement% 57 Wizard Run 0 Options --------- ASCII 0 Keyboard 0 Movement Numpad Keybinds 0 Fullscreen 1 Font 18/SmallcapsGlow Map View 76x50 Tactical HUD 1 Map Filters NONE Filters NONE Steam 1 RUN: a7dbee61-ae42-41fa-9329-3c43b8009732